Workbook

Sheet Sheet1
A1: 2021年度沅江市一般公共预算收入明细表
A2: 录入01表
A3: 单位:万元
A4: 科目编码 | B4: 科目名称 | C4: 决算数
B5: 一般公共预算收入 | C5: =SUM(C6,C349) -> 122,177
A6: 101 | B6: 税收收入 | C6: =C7+C44+C64+C187+C252+C260+C265+C279+C288+C294+C303+C312+C315+C318+C321+C333+C337+C340+C343+C346 -> 58,728
A7: 10101 | B7: 增值税 | C7: =SUM(C8,C37,C41) -> 25,094
A8: 1010101 | B8: 国内增值税 | C8: =SUM(C9:C36) -> 25,094
A9: 101010101 | B9: 国有企业增值税 | C9: 1,727
A10: 101010102 | B10: 集体企业增值税 | C10: 16
A11: 101010103 | B11: 股份制企业增值税 | C11: 11,463
A12: 101010104 | B12: 联营企业增值税 | C12: 0
A13: 101010105 | B13: 港澳台和外商投资企业增值税 | C13: 43
A14: 101010106 | B14: 私营企业增值税 | C14: 12,818
A15: 101010117 | B15: 中国国家铁路集团有限公司改征增值税待分配收入 | C15: 0
A16: 101010118 | B16: 中国国家铁路集团有限公司改征增值税收入 | C16: 0
A17: 101010119 | B17: 其他增值税 | C17: 576
A18: 101010120 | B18: 增值税税款滞纳金、罚款收入 | C18: 45
A19: 101010121 | B19: 残疾人就业增值税退税 | C19: 0
A20: 101010122 | B20: 软件增值税退税 | C20: -2
A21: 101010125 | B21: 宣传文化单位增值税退税 | C21: 0
A22: 101010127 | B22: 核电站增值税退税 | C22: 0
A23: 101010129 | B23: 资源综合利用增值税退税 | C23: -188
A24: 101010130 | B24: 成品油增值税退税 | C24: 0
A25: 101010131 | B25: 黄金增值税退税 | C25: 0
A26: 101010132 | B26: 光伏发电增值税退税 | C26: 0
A27: 101010133 | B27: 风力发电增值税退税 | C27: 0
A28: 101010134 | B28: 管道运输增值税退税 | C28: 0
A29: 101010135 | B29: 融资租赁增值税退税 | C29: 0
A30: 101010136 | B30: 增值税留抵退税 | C30: 0
A31: 101010137 | B31: 增值税留抵退税省级调库 | C31: 0
A32: 101010138 | B32: 增值税留抵退税省级以下调库 | C32: -1,600
A33: 101010150 | B33: 其他增值税退税 | C33: 0
A34: 101010151 | B34: 免抵调增增值税 | C34: 196
A35: 101010152 | B35: 成品油价格和税费改革增值税划出 | C35: 0
A36: 101010153 | B36: 成品油价格和税费改革增值税划入 | C36: 0
A37: 1010102 | B37: 进口货物增值税(项) | C37: =SUM(C38:C40) -> 0
A38: 101010201 | B38: 进口货物增值税(目) | C38: 0
A39: 101010220 | B39: 进口货物增值税税款滞纳金、罚款收入 | C39: 0
A40: 101010221 | B40: 进口货物退增值税 | C40: 0
A41: 1010103 | B41: 出口业务退增值税(项) | C41: =C42+C43 -> 0
A42: 101010301 | B42: 出口业务退增值税(目) | C42: 0
A43: 101010302 | B43: 免抵调减增值税 | C43: 0
A44: 10102 | B44: 消费税 | C44: =SUM(C45,C57,C63) -> 0
A45: 1010201 | B45: 国内消费税 | C45: =SUM(C46:C56) -> 0
A46: 101020101 | B46: 国有企业消费税 | C46: 0
A47: 101020102 | B47: 集体企业消费税 | C47: 0
A48: 101020103 | B48: 股份制企业消费税 | C48: 0
A49: 101020104 | B49: 联营企业消费税 | C49: 0
A50: 101020105 | B50: 港澳台和外商投资企业消费税 | C50: 0
A51: 101020106 | B51: 私营企业消费税 | C51: 0
A52: 101020107 | B52: 成品油消费税 | C52: 0
A53: 101020119 | B53: 其他消费税 | C53: 0
A54: 101020120 | B54: 消费税税款滞纳金、罚款收入 | C54: 0
A55: 101020121 | B55: 成品油消费税退税 | C55: 0
A56: 101020129 | B56: 其他消费税退税 | C56: 0
A57: 1010202 | B57: 进口消费品消费税 | C57: =SUM(C58:C62) -> 0
A58: 101020202 | B58: 进口成品油消费税 | C58: 0
A59: 101020209 | B59: 进口其他消费品消费税 | C59: 0
A60: 101020220 | B60: 进口消费品消费税税款滞纳金、罚款收入 | C60: 0
A61: 101020221 | B61: 进口成品油消费税退税 | C61: 0
A62: 101020229 | B62: 进口其他消费品退消费税 | C62: 0
A63: 1010203 | B63: 出口消费品退消费税 | C63: 0
A64: 10104 | B64: 企业所得税 | C64: =SUM(C65:C81,C85:C90,C94,C99:C100,C104:C110,C127:C128,C131:C133,C138,C143,C148,C153,C158,C163,C168,C173,C178,C183) -> 4,653
A65: 1010401 | B65: 国有冶金工业所得税 | C65: 0
A66: 1010402 | B66: 国有有色金属工业所得税 | C66: 0
A67: 1010403 | B67: 国有煤炭工业所得税 | C67: 0
A68: 1010404 | B68: 国有电力工业所得税 | C68: 0
A69: 1010405 | B69: 国有石油和化学工业所得税 | C69: 0
A70: 1010406 | B70: 国有机械工业所得税 | C70: 0
A71: 1010407 | B71: 国有汽车工业所得税 | C71: 0
A72: 1010408 | B72: 国有核工业所得税 | C72: 0
A73: 1010409 | B73: 国有航空工业所得税 | C73: 0
A74: 1010410 | B74: 国有航天工业所得税 | C74: 0
A75: 1010411 | B75: 国有电子工业所得税 | C75: 0
A76: 1010412 | B76: 国有兵器工业所得税 | C76: 0
A77: 1010413 | B77: 国有船舶工业所得税 | C77: 0
A78: 1010414 | B78: 国有建筑材料工业所得税 | C78: 0
A79: 1010415 | B79: 国有烟草企业所得税 | C79: 0
A80: 1010416 | B80: 国有纺织企业所得税 | C80: 0
A81: 1010417 | B81: 国有铁道企业所得税 | C81: =SUM(C82:C84) -> 0
A82: 101041701 | B82: 中国国家铁路集团有限公司集中缴纳的铁路运输企业所得税 | C82: 0
A83: 101041702 | B83: 中国国家铁路集团有限公司集中缴纳的铁路运输企业所得税待分配收入 | C83: 0
A84: 101041709 | B84: 其他国有铁道企业所得税 | C84: 0
A85: 1010418 | B85: 国有交通企业所得税 | C85: 0
A86: 1010419 | B86: 国有邮政企业所得税 | C86: 0
A87: 1010420 | B87: 国有民航企业所得税 | C87: 0
A88: 1010421 | B88: 国有海洋石油天然气企业所得税 | C88: 0
A89: 1010422 | B89: 国有外贸企业所得税 | C89: 0
A90: 1010423 | B90: 国有银行所得税 | C90: =SUM(C91:C93) -> 0
A91: 101042303 | B91: 中国进出口银行所得税 | C91: 0
A92: 101042304 | B92: 中国农业发展银行所得税 | C92: 0
A93: 101042309 | B93: 其他国有银行所得税 | C93: 0
A94: 1010424 | B94: 国有非银行金融企业所得税 | C94: =SUM(C95:C98) -> 0
A95: 101042402 | B95: 中国建银投资有限责任公司所得税 | C95: 0
A96: 101042403 | B96: 中国投资有限责任公司所得税 | C96: 0
A97: 101042404 | B97: 中投公司所属其他公司所得税 | C97: 0
A98: 101042409 | B98: 其他国有非银行金融企业所得税 | C98: 0
A99: 1010425 | B99: 国有保险企业所得税 | C99: 0
A100: 1010426 | B100: 国有文教企业所得税 | C100: =SUM(C101:C103) -> 0
A101: 101042601 | B101: 国有电影企业所得税 | C101: 0
A102: 101042602 | B102: 国有出版企业所得税 | C102: 0
A103: 101042609 | B103: 其他国有文教企业所得税 | C103: 0
A104: 1010427 | B104: 国有水产企业所得税 | C104: 0
A105: 1010428 | B105: 国有森林工业企业所得税 | C105: 0
A106: 1010429 | B106: 国有电信企业所得税 | C106: 0
A107: 1010430 | B107: 国有农垦企业所得税 | C107: 0
A108: 1010431 | B108: 其他国有企业所得税 | C108: 4
A109: 1010432 | B109: 集体企业所得税 | C109: 204
A110: 1010433 | B110: 股份制企业所得税 | C110: =SUM(C111:C126) -> 2,397
A111: 101043302 | B111: 股份制海洋石油天然气企业所得税 | C111: 0
A112: 101043303 | B112: 中国石油天然气股份有限公司所得税 | C112: 0
A113: 101043304 | B113: 中国石油化工股份有限公司所得税 | C113: 0
A114: 101043308 | B114: 中国工商银行股份有限公司所得税 | C114: 0
A115: 101043309 | B115: 中国建设银行股份有限公司所得税 | C115: 0
A116: 101043310 | B116: 中国银行股份有限公司所得税 | C116: 0
A117: 101043312 | B117: 长江电力股份有限公司所得税 | C117: 0
A118: 101043313 | B118: 中国农业银行股份有限公司所得税 | C118: 0
A119: 101043314 | B119: 国家开发银行股份有限公司所得税 | C119: 0
A120: 101043315 | B120: 中国邮政储蓄银行股份有限公司所得税 | C120: 0
A121: 101043316 | B121: 中国信达资产管理股份有限公司所得税 | C121: 0
A122: 101043317 | B122: 跨省合资铁路企业所得税 | C122: 0
A123: 101043318 | B123: 中国华融资产管理股份有限公司所得税 | C123: 0
A124: 101043319 | B124: 中国长城资产管理公司所得税 | C124: 0
A125: 101043320 | B125: 中国东方资产管理公司所得税 | C125: 0
A126: 101043399 | B126: 其他股份制企业所得税 | C126: 2,397
A127: 1010434 | B127: 联营企业所得税 | C127: 0
A128: 1010435 | B128: 港澳台和外商投资企业所得税 | C128: =C129+C130 -> 16
A129: 101043501 | B129: 港澳台和外商投资海上石油天然气企业所得税 | C129: 0
A130: 101043509 | B130: 其他港澳台和外商投资企业所得税 | C130: 16
A131: 1010436 | B131: 私营企业所得税 | C131: 1,974
A132: 1010439 | B132: 其他企业所得税 | C132: 1
A133: 1010440 | B133: 分支机构预缴所得税 | C133: =SUM(C134:C137) -> 31
A134: 101044001 | B134: 国有企业分支机构预缴所得税 | C134: 24
A135: 101044002 | B135: 股份制企业分支机构预缴所得税 | C135: 0
A136: 101044003 | B136: 港澳台和外商投资企业分支机构预缴所得税 | C136: 0
A137: 101044099 | B137: 其他企业分支机构预缴所得税 | C137: 7
A138: 1010441 | B138: 总机构预缴所得税 | C138: =SUM(C139:C142) -> 0
A139: 101044101 | B139: 国有企业总机构预缴所得税 | C139: 0
A140: 101044102 | B140: 股份制企业总机构预缴所得税 | C140: 0
A141: 101044103 | B141: 港澳台和外商投资企业总机构预缴所得税 | C141: 0
A142: 101044199 | B142: 其他企业总机构预缴所得税 | C142: 0
A143: 1010442 | B143: 总机构汇算清缴所得税 | C143: =SUM(C144:C147) -> 0
A144: 101044201 | B144: 国有企业总机构汇算清缴所得税 | C144: 0
A145: 101044202 | B145: 股份制企业总机构汇算清缴所得税 | C145: 0
A146: 101044203 | B146: 港澳台和外商投资企业总机构汇算清缴所得税 | C146: 0
A147: 101044299 | B147: 其他企业总机构汇算清缴所得税 | C147: 0
A148: 1010443 | B148: 企业所得税待分配收入 | C148: =SUM(C149:C152) -> 0
A149: 101044301 | B149: 国有企业所得税待分配收入 | C149: 0
A150: 101044302 | B150: 股份制企业所得税待分配收入 | C150: 0
A151: 101044303 | B151: 港澳台和外商投资企业所得税待分配收入 | C151: 0
A152: 101044399 | B152: 其他企业所得税待分配收入 | C152: 0
A153: 1010444 | B153: 跨市县分支机构预缴所得税 | C153: =SUM(C154:C157) -> 0
A154: 101044401 | B154: 国有企业分支机构预缴所得税 | C154: 0
A155: 101044402 | B155: 股份制企业分支机构预缴所得税 | C155: 0
A156: 101044403 | B156: 港澳台和外商投资企业分支机构预缴所得税 | C156: 0
A157: 101044499 | B157: 其他企业分支机构预缴所得税 | C157: 0
A158: 1010445 | B158: 跨市县总机构预缴所得税 | C158: =SUM(C159:C162) -> 0
A159: 101044501 | B159: 国有企业总机构预缴所得税 | C159: 0
A160: 101044502 | B160: 股份制企业总机构预缴所得税 | C160: 0
A161: 101044503 | B161: 港澳台和外商投资企业总机构预缴所得税 | C161: 0
A162: 101044599 | B162: 其他企业总机构预缴所得税 | C162: 0
A163: 1010446 | B163: 跨市县总机构汇算清缴所得税 | C163: =SUM(C164:C167) -> 0
A164: 101044601 | B164: 国有企业总机构汇算清缴所得税 | C164: 0
A165: 101044602 | B165: 股份制企业总机构汇算清缴所得税 | C165: 0
A166: 101044603 | B166: 港澳台和外商投资企业总机构汇算清缴所得税 | C166: 0
A167: 101044699 | B167: 其他企业总机构汇算清缴所得税 | C167: 0
A168: 1010447 | B168: 省以下企业所得税待分配收入 | C168: =SUM(C169:C172) -> 0
A169: 101044701 | B169: 国有企业所得税待分配收入 | C169: 0
A170: 101044702 | B170: 股份制企业所得税待分配收入 | C170: 0
A171: 101044703 | B171: 港澳台和外商投资企业所得税待分配收入 | C171: 0
A172: 101044799 | B172: 其他企业所得税待分配收入 | C172: 0
A173: 1010448 | B173: 跨市县分支机构汇算清缴所得税 | C173: =SUM(C174:C177) -> 0
A174: 101044801 | B174: 国有企业分支机构汇算清缴所得税 | C174: 0
A175: 101044802 | B175: 股份制企业分支机构汇算清缴所得税 | C175: 0
A176: 101044803 | B176: 港澳台和外商投资企业分支机构汇算清缴所得税 | C176: 0
A177: 101044899 | B177: 其他企业分支机构汇算清缴所得税 | C177: 0
A178: 1010449 | B178: 分支机构汇算清缴所得税 | C178: =SUM(C179:C182) -> 1
A179: 101044901 | B179: 国有企业分支机构汇算清缴所得税 | C179: 0
A180: 101044902 | B180: 股份制企业分支机构汇算清缴所得税 | C180: 0
A181: 101044903 | B181: 港澳台和外商投资企业分支机构汇算清缴所得税 | C181: 0
A182: 101044999 | B182: 其他企业分支机构汇算清缴所得税 | C182: 1
A183: 1010450 | B183: 企业所得税税款滞纳金、罚款、加收利息收入 | C183: =SUM(C184:C186) -> 25
A184: 101045001 | B184: 内资企业所得税税款滞纳金、罚款、加收利息收入 | C184: 25
A185: 101045002 | B185: 港澳台和外商投资企业所得税税款滞纳金、罚款、加收利息收入 | C185: 0
A186: 101045003 | B186: 中央企业所得税税款滞纳金、罚款、加收利息收入 | C186: 0
A187: 10105 | B187: 企业所得税退税 | C187: =SUM(C188:C210,C214,C217,C218,C222:C227,C239:C241,C246,C251) -> 0
A188: 1010501 | B188: 国有冶金工业所得税退税 | C188: 0
A189: 1010502 | B189: 国有有色金属工业所得税退税 | C189: 0
A190: 1010503 | B190: 国有煤炭工业所得税退税 | C190: 0
A191: 1010504 | B191: 国有电力工业所得税退税 | C191: 0
A192: 1010505 | B192: 国有石油和化学工业所得税退税 | C192: 0
A193: 1010506 | B193: 国有机械工业所得税退税 | C193: 0
A194: 1010507 | B194: 国有汽车工业所得税退税 | C194: 0
A195: 1010508 | B195: 国有核工业所得税退税 | C195: 0
A196: 1010509 | B196: 国有航空工业所得税退税 | C196: 0
A197: 1010510 | B197: 国有航天工业所得税退税 | C197: 0
A198: 1010511 | B198: 国有电子工业所得税退税 | C198: 0
A199: 1010512 | B199: 国有兵器工业所得税退税 | C199: 0
A200: 1010513 | B200: 国有船舶工业所得税退税 | C200: 0
... 493 more rows

Sheet Sheet2

Sheet Sheet3
